lending/lending_fUSD_20240131
["ID","MTS","AMOUNT","RATE_DAILY","PERIOD"]
[313052521,1706694683103,-16370.99654769,0.00042,2]
[313052522,1706694683113,-543.47,0.00042,15]
[313052523,1706694683123,-1381.39715128,0.00042,30]
[313052524,1706694683133,-10007.0,0.00042,2]
[313052525,1706694683144,-5277.83776403,0.00042,30]
[313052526,1706694683155,-2000.0,0.00042,2]
[313052527,1706694683165,-5000.0,0.00042,6]
[313052528,1706694683175,-1275.835508,0.00042,2]
[313052529,1706694683185,-500.0,0.00042058,6]
[313052530,1706694683195,-500.0,0.00042058,6]
[313052531,1706694683205,-500.0,0.00042058,6]
[313052532,1706694683214,-500.0,0.00042058,6]
[313052533,1706694683224,-504.25963092,0.00042058,6]
[313052534,1706694683234,-59896.0,0.0004209,2]
[313052535,1706694683243,-27055.0,0.0004209,2]
[313052536,1706694683253,-187.98170825,0.00042091,26]
[313052537,1706694683265,-189.99357005,0.0004214,3]
[313052538,1706694683274,-256.70602712,0.0004214,3]
[313052539,1706694683285,-2962.2077085,0.00042141,3]
[313052540,1706694683298,-1169.02350656,0.00042141,3]
[313052541,1706694683308,-437234.23414232,0.00042141,2]
[313052542,1706694683317,-18682.68032879,0.00042141,3]
[313052543,1706694683327,-3781.4742878,0.00042141,3]
[313052544,1706694683339,-2000.0,0.00042141,3]
[313052545,1706694683348,-2000.0,0.00042141,3]
[313052546,1706694683357,-2000.0,0.00042141,3]
[313052547,1706694683367,-2000.0,0.00042141,3]
[313052548,1706694683378,-2000.0,0.00042141,3]
[313052549,1706694683388,-2000.0,0.00042141,3]
[313052550,1706694683398,-4799.35170678,0.00042141,2]
[313052551,1706694683407,-173.11522339,0.00042141,2]
[313052552,1706694683417,-1001.10895613,0.00042141,2]
[313052553,1706694683428,-160.90367315,0.00042141,2]
[313052554,1706694683437,-8845.77620421,0.00042141,2]
[313052555,1706694683447,-1256.16709393,0.00042141,2]
[313052556,1706694683457,-4735.82827031,0.00042141,2]
[313052557,1706694683467,-6737.99763674,0.00042141,2]
[313052558,1706694683477,-21743.05626812,0.00042141,2]
[313052559,1706694683487,-12296.33558277,0.00042141,2]
[313052560,1706694683496,-1840.88408714,0.00042141,2]
[313052561,1706694683506,-643.0,0.00042141,2]
[313052562,1706694683515,-929.46284516,0.00042141,2]
[313052563,1706694683525,-8424.41001174,0.00042141,2]
[313052564,1706694683536,-29536.28002314,0.00042141,2]
[313052565,1706694683545,-548.9913317,0.00042141,2]
[313052566,1706694683554,-764.93261311,0.00042141,2]
[313052567,1706694683566,-252.7062815,0.00042141,2]
[313052568,1706694683576,-52183.22566928,0.00042141,2]
[313052569,1706694683586,-8806.82018867,0.00042141,2]
[313052570,1706694683596,-550.0,0.00042141,2]
[313052571,1706694683606,-1001.39155139,0.00042141,2]
[313052572,1706694683616,-10262.67124172,0.00042141,2]
[313052573,1706694683625,-37563.3656989,0.00042141,5]
[313052574,1706694683636,-580.7226463,0.00042141,2]
[313052575,1706694683645,-915.4648,0.00042141,7]
[313052576,1706694683655,-212.37469545,0.00042141,23]
[313052577,1706694683666,-129299.02628578,0.00042141,2]
[313052578,1706694683912,-33126.66392064,0.00042141,2]
[313052579,1706694683922,-10826.65125585,0.00042141,2]
[313052580,1706694684069,-151.0,0.00041096,14]
[313052581,1706694684079,-151.0,0.00041096,14]
[313052582,1706694684089,-151.0,0.00041096,14]
[313052583,1706694684099,-3516.34036325,0.00042141,2]
[313052584,1706694684109,-6000.0,0.00042141,2]
[313052585,1706694684119,-689.18317849,0.00042141,2]
[313052586,1706694684129,-14034.33785459,0.00042141,2]
[313052587,1706694684140,-341.86739124,0.00042141,2]
[313052588,1706694684150,-200.0,0.00042141,2]
[313052589,1706694684160,-626.68591853,0.00042141,2]
[313052590,1706694684170,-601.0757414,0.00042141,2]
[313052591,1706694684181,-206.1007078,0.00042141,2]
[313052592,1706694684191,-103639.17788434,0.00042141,2]
[313052593,1706694684390,-151.0,0.00041096,14]
[313052594,1706694684400,-151.0,0.00041096,14]
[313052595,1706694684410,-151.0,0.00041096,14]
[313052596,1706694684419,-151.0,0.00041096,14]
[313052597,1706694684429,-29.234,0.00041096,14]
[313052598,1706694684441,-121.766,0.00041096,14]
[313052599,1706694684451,-151.0,0.00041096,14]
[313052600,1706694684460,-4714.03504933,0.00042141,2]
[313052601,1706694684472,-252.53,0.00042141,2]
[313052602,1706694684501,-307.16297503,0.00042141,2]
[313052603,1706694684599,-38309.89722576,0.00042141,2]
[313052604,1706694684611,-2526.20489854,0.00042141,7]
[313052605,1706694684621,-430.88510337,0.00042141,2]
[313052606,1706694684632,-1023.78301062,0.00042141,2]
[313052607,1706694684645,-20386.91571585,0.00042141,2]
[313052608,1706694684656,-4336.92032052,0.00042141,2]
[313052609,1706694684667,-2500.0,0.00042141,2]
[313052610,1706694684677,-555.99271204,0.00042141,2]
[313052611,1706694684687,-26674.31235266,0.00042141,2]
[313052612,1706694684698,-2283.76339256,0.00042141,2]
[313052613,1706694684708,-231.03998447,0.00042141,2]
[313052614,1706694684718,-1577.93832986,0.00042141,2]
[313052615,1706694684729,-517.35665587,0.00042141,2]
[313052616,1706694684739,-168877.33201154,0.00042141,2]
[313052617,1706694684749,-168.94296032,0.00042141,7]
[313052618,1706694684760,-163.12760418,0.00042141,7]
[313052619,1706694684771,-500.0,0.00042141,2]
[313052620,1706694684783,-500.0,0.00042141,5]
[313052621,1706694684793,-273.41510161,0.00042141,2]
[313052622,1706694684803,-159.0,0.00042141,120]
[313052623,1706694684813,-1707.15433805,0.00042141,120]
[313052624,1706694684824,-177.29499059,0.00042141,120]
[313052625,1706694684834,-1978.828323,0.00042141,30]
[313052626,1706694684844,-387.4802597,0.00042141,2]
[313052627,1706694684855,-1764.260974,0.00042141,30]
[313052628,1706694684865,-1000.0,0.00042141,2]
[313052629,1706694684876,-1000.0,0.00042141,2]
[313052630,1706694684886,-1000.0,0.00042141,2]
[313052631,1706694684899,-1000.0,0.00042141,2]
[313052632,1706694684909,-1000.0,0.00042141,2]
[313052633,1706694684920,-1000.0,0.00042141,2]
[313052634,1706694684930,-1000.0,0.00042141,2]
[313052635,1706694684940,-1000.0,0.00042141,2]
[313052636,1706694684951,-1000.0,0.00042141,2]
[313052637,1706694684962,-1000.0,0.00042141,2]
[313052638,1706694684972,-1482.519573,0.00042141,2]
[313052639,1706694684982,-150.0,0.00042177,2]
[313052640,1706694684995,-207.0,0.00042188,27]
[313052641,1706694685005,-189.99357005,0.0004219,3]
[313052642,1706694685015,-256.70602712,0.0004219,3]
[313052643,1706694685025,-500.0,0.00042191,5]
[313052644,1706694685036,-500.0,0.00042191,5]
[313052645,1706694685045,-500.0,0.00042191,5]
[313052646,1706694685055,-500.0,0.00042191,5]
[313052647,1706694685064,-614.95,0.00042191,5]
[313052648,1706694685073,-954.59,0.00042191,5]
[313052649,1706694685082,-523.05,0.00042191,5]
[313052650,1706694685092,-500.0,0.00042191,5]
[313052651,1706694685101,-708.95,0.00042191,5]
[313052652,1706694685110,-1406.6,0.00042191,5]
[313052653,1706694685121,-500.0,0.00042191,5]
[313052654,1706694685130,-492.76713548,0.00042191,5]
[313052655,1706694685140,-612.53,0.00042191,5]
[313052656,1706694685151,-500.0,0.00042191,5]
[313052657,1706694685161,-500.0,0.00042191,5]
[313052658,1706694685171,-500.0,0.00042191,5]
[313052659,1706694685181,-919.19,0.00042191,5]
[313052660,1706694685191,-1099.01,0.00042191,7]
[313052661,1706694685201,-988.7,0.00042191,5]
[313052662,1706694685211,-500.0,0.00042191,5]
[313052663,1706694685222,-500.0,0.00042191,5]
[313052664,1706694685231,-500.35,0.00042191,2]
[313052665,1706694685241,-500.0,0.00042191,5]
[313052666,1706694685251,-721.58,0.00042191,5]
[313052667,1706694685261,-500.0,0.00042191,5]
[313052668,1706694685272,-500.0,0.00042191,5]
[313052669,1706694685285,-1042.81,0.00042191,5]
[313052670,1706694685294,-540.17,0.00042191,5]
[313052671,1706694685304,-500.0,0.00042191,5]
[313052672,1706694685314,-577.86,0.00042191,5]
[313052673,1706694685324,-792.53,0.00042191,5]
[313052674,1706694685334,-583.71,0.00042191,5]
[313052675,1706694685343,-603.42,0.00042191,5]
[313052676,1706694685355,-500.0,0.00042191,5]
[313052677,1706694685365,-500.0,0.00042191,5]
[313052678,1706694685375,-500.0,0.00042191,5]
[313052679,1706694685385,-500.0,0.00042191,5]
[313052680,1706694685395,-500.0,0.00042191,10]
[313052681,1706694685405,-641.84,0.00042191,5]
[313052682,1706694685415,-772.86,0.00042191,5]
[313052683,1706694685425,-942.86,0.00042191,5]
[313052684,1706694685435,-500.0,0.00042191,5]
[313052685,1706694685446,-1247.5,0.00042191,5]
[313052686,1706694685457,-500.0,0.00042191,5]
[313052687,1706694685467,-1000.0,0.00042191,7]
[313052688,1706694685477,-500.0,0.00042191,5]
[313052689,1706694685487,-500.0,0.00042191,5]
[313052690,1706694685497,-573.31,0.00042191,5]
[313052691,1706694685508,-886.57,0.00042191,5]
[313052692,1706694685518,-500.0,0.00042191,5]
[313052693,1706694685529,-802.81,0.00042191,5]
[313052694,1706694685540,-580.02,0.00042191,5]
[313052695,1706694685549,-769.97,0.00042191,5]
[313052696,1706694685559,-991.05,0.00042191,2]
[313052697,1706694685570,-829.21,0.00042191,5]
[313052698,1706694685581,-1772.16,0.00042191,5]
[313052699,1706694685591,-500.0,0.00042191,5]
[313052700,1706694685601,-500.0,0.00042191,5]
[313052701,1706694685610,-500.0,0.00042191,5]
[313052702,1706694685620,-500.0,0.00042191,5]
[313052703,1706694685630,-500.0,0.00042191,5]
[313052704,1706694685642,-551.9,0.00042191,5]
[313052705,1706694685652,-576.97,0.00042191,5]
[313052706,1706694685664,-500.0,0.00042191,5]
[313052707,1706694685675,-742.58,0.00042191,5]
[313052708,1706694685686,-500.0,0.00042191,5]
[313052709,1706694685696,-500.0,0.00042191,5]
[313052710,1706694685707,-500.0,0.00042191,5]
[313052711,1706694685717,-866.57,0.00042191,5]
[313052712,1706694685727,-958.12,0.00042191,5]
[313052713,1706694685739,-2301.48,0.00042191,5]
[313052714,1706694685751,-714.51,0.00042191,5]
[313052715,1706694685763,-717.95,0.00042191,5]
[313052716,1706694685774,-528.8,0.00042191,5]
[313052717,1706694685786,-500.0,0.00042191,5]
[313052718,1706694685796,-650.16,0.00042191,5]
[313052719,1706694685806,-500.0,0.00042191,5]
[313052720,1706694685817,-769.18,0.00042191,5]
[313052721,1706694685827,-2602.84,0.00042191,5]
[313052722,1706694685837,-370.66818388,0.00042191,5]
[313052723,1706694685848,-1414.55,0.00042191,5]
[313052724,1706694685858,-500.0,0.00042191,5]
[313052725,1706694685868,-861.22,0.00042191,2]
[313052726,1706694685879,-1102.08,0.00042191,5]
[313052727,1706694685889,-500.0,0.00042191,5]
[313052728,1706694685899,-500.0,0.00042191,5]
[313052729,1706694685910,-668.53935348,0.00042191,31]
[313052730,1706694685919,-849.42,0.00042191,5]
[313052731,1706694685929,-2265.45,0.00042191,5]
[313052732,1706694685939,-787.88,0.00042191,5]
[313052733,1706694685949,-2673.5,0.00042191,5]
[313052734,1706694685959,-748.94,0.00042191,5]
[313052735,1706694685970,-1979.4,0.00042191,5]
[313052736,1706694685981,-500.0,0.00042191,5]
[313052737,1706694685991,-1000.0,0.00042191,120]
[313052738,1706694686001,-787.6,0.00042191,5]
[313052739,1706694686011,-584.22,0.00042191,5]
[313052740,1706694686021,-1502.45,0.00042191,5]
[313052741,1706694686032,-6992.13,0.00042191,5]
[313052742,1706694686043,-843.12,0.00042191,5]
[313052743,1706694686053,-500.0,0.00042191,5]
[313052744,1706694686064,-1311.02,0.00042191,5]
[313052745,1706694686073,-978.74,0.00042191,5]
[313052746,1706694686084,-559.12,0.00042191,5]
[313052747,1706694686094,-1639.35,0.00042191,2]
[313052748,1706694686104,-1333.35,0.00042191,5]
[313052749,1706694686115,-3627.45,0.00042191,5]
[313052750,1706694686298,-500.0,0.00042191,5]
[313052751,1706694686309,-923.07,0.00042191,5]
[313052752,1706694686319,-581.32,0.00042191,5]
[313052753,1706694686330,-546.08748155,0.00042191,5]
[313052754,1706694686342,-2637.97,0.00042191,5]
[313052755,1706694686353,-550.71,0.00042191,5]
[313052756,1706694686363,-2102.91,0.00042191,5]
[313052757,1706694686374,-3266.12,0.00042191,5]
[313052758,1706694686384,-2975.79,0.00042191,5]
[313052759,1706694686394,-833.84,0.00042191,5]
[313052760,1706694686405,-1721.76,0.00042191,5]
[313052761,1706694686414,-3438.52,0.00042191,5]
[313052762,1706694686423,-500.0,0.00042191,5]
[313052763,1706694686433,-6564.97,0.00042191,5]
[313052764,1706694686443,-407.35529636,0.00042191,5]
[313052765,1706694686453,-3801.39,0.00042191,5]
[313052766,1706694686463,-500.0,0.00042191,5]
[313052767,1706694686472,-1008.58,0.00042191,5]
[313052768,1706694686482,-809.55,0.00042191,5]
[313052769,1706694686491,-2556.8,0.00042191,5]
[313052770,1706694686501,-513.37,0.00042191,5]
[313052771,1706694686511,-951.74,0.00042191,5]
[313052772,1706694686521,-635.04,0.00042191,5]
[313052773,1706694686531,-500.0,0.00042191,5]
[313052774,1706694686541,-756.38,0.00042191,5]
[313052775,1706694686550,-758.78,0.00042191,5]
[313052776,1706694686560,-918.29,0.00042191,5]
[313052777,1706694686571,-500.0,0.00042191,5]
[313052778,1706694686581,-1308.87,0.00042191,5]
[313052779,1706694686591,-1172.36,0.00042191,5]
[313052780,1706694686601,-742.8,0.00042191,5]
[313052781,1706694686611,-1705.38,0.00042191,5]
[313052782,1706694686620,-1681.92,0.00042191,5]
[313052783,1706694686631,-500.0,0.00042191,5]
[313052784,1706694686641,-500.0,0.00042191,5]
[313052785,1706694686652,-500.0,0.00042191,5]
[313052786,1706694686662,-1100.12,0.00042191,5]
[313052787,1706694686672,-623.78,0.00042191,5]
[313052788,1706694686682,-520.11,0.00042191,5]
[313052789,1706694686691,-813.21,0.00042191,5]
[313052790,1706694686702,-538.14,0.00042191,5]
[313052791,1706694686712,-924.1,0.00042191,5]
[313052792,1706694686722,-874.95,0.00042191,5]
[313052793,1706694686732,-1514.93,0.00042191,5]
[313052794,1706694686741,-531.18564204,0.00042191,5]
[313052795,1706694686751,-766.97,0.00042191,5]
[313052796,1706694686761,-1419.76,0.00042191,5]
[313052797,1706694686770,-1518.73,0.00042191,5]
[313052798,1706694686780,-778.08,0.00042191,5]
[313052799,1706694686790,-1142.46,0.00042191,5]
[313052800,1706694686801,-1585.17,0.00042191,5]
[313052801,1706694686810,-1360.69,0.00042191,5]
[313052802,1706694686820,-3427.93,0.00042191,5]
[313052803,1706694686831,-2181.53,0.00042191,5]
[313052804,1706694686841,-1681.32,0.00042191,5]
[313052805,1706694686850,-1578.68,0.00042191,5]
[313052806,1706694686860,-2245.27,0.00042191,5]
[313052807,1706694686869,-1541.05,0.00042191,5]
[313052808,1706694686878,-1184.78,0.00042191,5]
[313052809,1706694686887,-759.64,0.00042191,5]
[313052810,1706694686896,-2411.41,0.00042191,5]
[313052811,1706694686906,-721.86,0.00042191,5]
[313052812,1706694686916,-500.0,0.00042191,5]
[313052813,1706694686926,-4216.63,0.00042191,5]
[313052814,1706694686935,-875.44,0.00042191,5]
[313052815,1706694686945,-607.11,0.00042191,5]
[313052816,1706694686954,-4080.07,0.00042191,5]
[313052817,1706694686963,-1292.41,0.00042191,5]
[313052818,1706694686973,-2126.77,0.00042191,5]
[313052819,1706694686982,-678.84,0.00042191,5]
[313052820,1706694686991,-837.72,0.00042191,5]
[313052821,1706694687000,-500.0,0.00042191,5]
[313052822,1706694687009,-937.91,0.00042191,5]
[313052823,1706694687018,-794.23,0.00042191,5]
[313052824,1706694687027,-5428.42,0.00042191,5]
[313052825,1706694687037,-500.0,0.00042191,5]
[313052826,1706694687046,-1711.528241,0.00042191,5]
[313052827,1706694687066,-909.26795473,0.00042191,5]
[313052828,1706694687078,-261.99393107,0.00042191,5]
[313052829,1706694687090,-367.9298732,0.00042191,5]
[313052830,1706694687099,-1723.78,0.00042191,5]
[313052831,1706694687109,-1600.13,0.00042191,2]
[313052832,1706694687118,-3841.13,0.00042191,5]
[313052833,1706694687127,-2499.59,0.00042191,5]
[313052834,1706694687137,-916.73,0.00042191,5]
[313052835,1706694687147,-1345.99,0.00042191,5]
[313052836,1706694687156,-1529.06474296,0.00042191,5]
[313052837,1706694687209,-151.0,0.00041096,14]
[313052838,1706694687220,-320.06540919,0.00042191,5]
[313052839,1706694690256,-384.0,0.00035,5]
[313052840,1706694690271,-208.18511201,0.00038355,2]
[313052841,1706694690282,-500.0,0.00038356,5]
[313052842,1706694690293,-500.0,0.00038904,5]
[313052843,1706694690303,-500.0,0.00039452,5]
[313052844,1706694690313,-500.0,0.0004,5]
[313052845,1706694690323,-500.0,0.00040547,5]
[313052846,1706694690333,-500.0,0.00041095,5]
[313052847,1706694690342,-151.0,0.00041096,14]
[313052848,1706694690352,-151.0,0.00041096,14]
[313052849,1706694690363,-202.99901,0.00041096,14]
[313052850,1706694690373,-500.0,0.00041643,5]
[313052851,1706694690563,-86.29984785,0.00042191,5]
[313052852,1706694690575,-1282.3,0.00042191,5]
[313052853,1706694690586,-866.24,0.00042191,5]
[313052854,1706694690596,-500.0,0.00042191,5]
[313052855,1706694690606,-501.06,0.00042191,5]
[313052856,1706694690617,-1553.81,0.00042191,5]
[313052857,1706694690627,-716.93,0.00042191,5]
[313052858,1706694690638,-795.16,0.00042191,5]
[313052859,1706694690648,-1701.51,0.00042191,5]
[313052860,1706694690659,-500.0,0.00042191,5]
[313052861,1706694690668,-8182.09,0.00042191,5]
[313052862,1706694690678,-500.0,0.00042191,5]
[313052863,1706694690688,-500.0,0.00042191,5]
[313052864,1706694690697,-1231.59,0.00042191,5]
[313052865,1706694690707,-2488.68,0.00042191,5]
[313052866,1706694690718,-500.0,0.00042191,5]
[313052867,1706694690728,-500.0,0.00042191,5]
[313052868,1706694690738,-500.0,0.00042191,5]
[313052869,1706694690749,-500.0,0.00042191,5]
[313052870,1706694690759,-2438.4,0.00042191,5]
[313052871,1706694690768,-630.62,0.00042191,5]
[313052872,1706694690779,-6886.74,0.00042191,5]
[313052873,1706694690790,-1589.99,0.00042191,5]
[313052874,1706694690800,-5341.94,0.00042191,5]
[313052875,1706694690809,-2893.31,0.00042191,5]
[313052876,1706694690819,-1171.68,0.00042191,5]
[313052877,1706694690830,-1344.97,0.00042191,5]
[313052878,1706694690840,-627.97,0.00042191,5]
[313052879,1706694690849,-1574.66,0.00042191,5]
[313052880,1706694690859,-1680.53,0.00042191,5]
[313052881,1706694690869,-5421.11,0.00042191,5]
[313052882,1706694690878,-671.46,0.00042191,5]
[313052883,1706694690888,-1906.82,0.00042191,5]
[313052884,1706694690898,-570.44,0.00042191,5]
[313052885,1706694690907,-636.47,0.00042191,5]
[313052886,1706694690917,-795.9,0.00042191,5]
[313052887,1706694690926,-2775.51,0.00042191,5]
[313052888,1706694690935,-1259.66,0.00042191,5]
[313052889,1706694690945,-500.0,0.00042191,5]
[313052890,1706694690955,-1151.18,0.00042191,5]
[313052891,1706694690965,-500.0,0.00042191,5]
[313052892,1706694690975,-1296.01,0.00042191,5]
[313052893,1706694690985,-564.87,0.00042191,5]
[313052894,1706694690995,-1074.73,0.00042191,5]
[313052895,1706694691005,-3009.11,0.00042191,5]
[313052896,1706694691014,-2425.31,0.00042191,5]
[313052897,1706694691023,-500.0,0.00042191,2]
[313052898,1706694691034,-3095.04,0.00042191,5]
[313052899,1706694691043,-741.97,0.00042191,2]
[313052900,1706694691053,-618.57,0.00042191,5]
[313052901,1706694691063,-1533.89,0.00042191,5]
[313052902,1706694691071,-500.0,0.00042191,5]
[313052903,1706694691081,-621.35,0.00042191,5]
[313052904,1706694691091,-1562.28,0.00042191,5]
[313052905,1706694691101,-1131.88,0.00042191,5]
[313052906,1706694691110,-1000.0,0.00042191,2]
[313052907,1706694691120,-2108.04,0.00042191,5]
[313052908,1706694691130,-500.0,0.00042191,2]
[313052909,1706694691140,-500.0,0.00042191,5]
[313052910,1706694691151,-3901.96,0.00042191,5]
[313052911,1706694691161,-1312.53,0.00042191,5]
[313052912,1706694691172,-1224.84,0.00042191,5]
[313052913,1706694691182,-542.16,0.00042191,5]
[313052914,1706694691193,-500.0,0.00042191,5]
[313052915,1706694691204,-500.0,0.00042191,5]
[313052916,1706694691214,-570.86,0.00042205,2]
[313052917,1706694691224,-151.0131,0.00042248,14]
[313052918,1706694691233,-151.0131,0.00042448,16]
[313052919,1706694691243,-211.17222123,0.0004248,2]
[313052920,1706694691253,-5000.0,0.000425,6]
[313052921,1706694691265,-251.30008995,0.00042553,2]
[313052922,1706694691276,-17665.74210277,0.00042553,20]
[313052923,1706694691286,-11873.70064958,0.00042553,18]
[313052924,1706694691297,-8944.74802596,0.00042553,20]
[313052925,1706694691308,-13288.66341261,0.00042553,20]
[313052926,1706694691319,-10007.48389682,0.00042553,20]
[313052927,1706694691330,-500.0,0.00042739,5]
[313052928,1706694691341,-500.0,0.00042739,5]
[313052929,1706694691351,-500.0,0.00042739,5]
[313052930,1706694691362,-954.59,0.00042739,5]
[313052931,1706694691373,-523.05,0.00042739,5]
[313052932,1706694691383,-500.0,0.00042739,5]
[313052933,1706694691393,-708.95,0.00042739,5]
[313052934,1706694691403,-1406.6,0.00042739,5]
[313052935,1706694691412,-166.04966897,0.00042739,5]
[313052936,1706694691423,-612.53,0.00042739,5]
[313052937,1706694691434,-500.0,0.00042739,5]
[313052938,1706694691445,-500.0,0.00042739,5]
[313052939,1706694691455,-919.19,0.00042739,5]
[313052940,1706694691466,-1099.01,0.00042739,7]
[313052941,1706694691478,-988.7,0.00042739,5]
[313052942,1706694691489,-500.0,0.00042739,5]
[313052943,1706694691500,-500.0,0.00042739,5]
[313052944,1706694691510,-500.35,0.00042739,2]
[313052945,1706694691520,-500.0,0.00042739,5]
[313052946,1706694691531,-721.58,0.00042739,5]
[313052947,1706694691542,-500.0,0.00042739,5]
[313052948,1706694691552,-500.0,0.00042739,5]
[313052949,1706694691562,-1042.81,0.00042739,5]
[313052950,1706694691572,-540.17,0.00042739,5]
[313052951,1706694691583,-500.0,0.00042739,5]
[313052952,1706694691594,-577.86,0.00042739,5]
[313052953,1706694691605,-792.53,0.00042739,5]
[313052954,1706694691615,-583.71,0.00042739,5]
[313052955,1706694691626,-603.42,0.00042739,5]
[313052956,1706694691636,-500.0,0.00042739,5]
[313052957,1706694691645,-500.0,0.00042739,5]
[313052958,1706694691655,-500.0,0.00042739,5]
[313052959,1706694691664,-500.0,0.00042739,5]
[313052960,1706694691674,-500.0,0.00042739,10]
[313052961,1706694691685,-641.84,0.00042739,5]
[313052962,1706694691696,-772.86,0.00042739,5]
[313052963,1706694691706,-942.86,0.00042739,5]
[313052964,1706694691716,-153.73382314,0.00042739,5]
[313052965,1706694691726,-1247.5,0.00042739,5]
[313052966,1706694691737,-500.0,0.00042739,5]
[313052967,1706694691747,-1000.0,0.00042739,7]
[313052968,1706694691757,-500.0,0.00042739,5]
[313052969,1706694691767,-500.0,0.00042739,5]
[313052970,1706694691777,-573.31,0.00042739,5]
[313052971,1706694691788,-886.57,0.00042739,5]
[313052972,1706694691798,-500.0,0.00042739,5]
[313052973,1706694691808,-802.81,0.00042739,5]
[313052974,1706694691819,-580.02,0.00042739,5]
[313052975,1706694691830,-769.97,0.00042739,5]
[313052976,1706694691840,-991.05,0.00042739,2]
[313052977,1706694691850,-829.21,0.00042739,5]
[313052978,1706694691861,-1772.16,0.00042739,5]
[313052979,1706694691871,-584.78594489,0.00042739,5]
[313052980,1706694691882,-500.0,0.00042739,5]
[313052981,1706694691893,-500.0,0.00042739,5]
[313052982,1706694691904,-500.0,0.00042739,5]
[313052983,1706694691914,-500.0,0.00042739,5]
[313052984,1706694691924,-551.9,0.00042739,5]
[313052985,1706694691935,-576.97,0.00042739,5]
[313052986,1706694691946,-500.0,0.00042739,5]
[313052987,1706694691956,-742.58,0.00042739,5]
[313052988,1706694691966,-500.0,0.00042739,5]
[313052989,1706694691976,-500.0,0.00042739,5]
[313052990,1706694691986,-500.0,0.00042739,5]
[313052991,1706694691995,-866.57,0.00042739,5]
[313052992,1706694692005,-958.12,0.00042739,5]
[313052993,1706694692015,-714.51,0.00042739,5]
[313052994,1706694692025,-717.95,0.00042739,5]
[313052995,1706694692035,-528.8,0.00042739,5]
[313052996,1706694692044,-500.0,0.00042739,5]
[313052997,1706694692054,-650.16,0.00042739,5]
[313052998,1706694692063,-500.0,0.00042739,5]
[313052999,1706694692074,-769.18,0.00042739,5]
[313053000,1706694692084,-2602.84,0.00042739,5]
[313053001,1706694692094,-1414.55,0.00042739,5]
[313053002,1706694692104,-500.0,0.00042739,5]
[313053003,1706694692114,-861.22,0.00042739,2]
[313053004,1706694692124,-1102.08,0.00042739,5]
[313053005,1706694692134,-500.0,0.00042739,5]
[313053006,1706694692144,-500.0,0.00042739,5]
[313053007,1706694692154,-849.42,0.00042739,5]
[313053008,1706694692164,-2265.45,0.00042739,5]
[313053009,1706694692173,-787.88,0.00042739,5]
[313053010,1706694692183,-2673.5,0.00042739,5]
[313053011,1706694692193,-748.94,0.00042739,5]
[313053012,1706694692203,-1979.4,0.00042739,5]
[313053013,1706694692213,-500.0,0.00042739,5]
[313053014,1706694692222,-1000.0,0.00042739,120]
[313053015,1706694692233,-787.6,0.00042739,5]
[313053016,1706694692243,-584.22,0.00042739,5]
[313053017,1706694692254,-6992.13,0.00042739,5]
[313053018,1706694692265,-843.12,0.00042739,5]
[313053019,1706694692277,-500.0,0.00042739,5]
[313053020,1706694692289,-1311.02,0.00042739,5]